[Event "15th Arad Open 2022"]
[Site "Arad"]
[Date "2022.08.10"]
[Round "4.15"]
[White "Herczeg, Marcell"]
[Black "Tudor, Henry Edward"]
[Result "1/2-1/2"]
[ECO "B41"]
[WhiteElo "2044"]
[BlackElo "1984"]
[Annotator "NA RC"]
[PlyCount "97"]
[EventDate "2022.08.08"]
[EventType "swiss"]
[EventCountry "ROU"]
[SourceTitle "playchess.com"]
[Source "ChessBase"]
[SourceQuality "1"]
[TimeControl "5400+30"]

1. e4 {[%emt 0:00:23]} c5 {[%emt 0:00:22]} 2. Nf3 {[%emt 0:00:46]} e6 {[%emt 0:00:36]} 3. d4 {[%emt 0:01:15]} cxd4 {[%emt 0:00:47]} 4. Nxd4 {[%emt 0:00:28]} a6 {[%emt 0:00:38]} 5. c4 {[%emt 0:02:22]} Nc6 {[%emt 0:04:21]} 6. Nc3 {[%emt 0:04:16]} Qb6 {[%emt 0:01:07]} 7. Nb3 {[%emt 0:01:05]} Nf6 {[%emt 0:10:47]} 8. Be3 {[%emt 0:01:42]} Qc7 {[%emt 0:00:50]} 9. Be2 {[%emt 0:05:49]} Bb4 {[%emt 0:02:51]} 10. Qc2 {[%emt 0:05:16]} d5 {[%emt 0:01:35]} 11. cxd5 {[%emt 0:09:00]} exd5 $11 {[%emt 0:01:22]} 12. exd5 {[%emt 0:19:59]} Nxd5 {[%emt 0:00:26]} 13. Bd2 {[%emt 0:00:45]} Nde7 {[%emt 0:32:30]} 14. O-O {[%emt 0:13:57]} Bf5 {[%emt 0:03:14]} 15. Bd3 {[%emt 0:00:59]} Bxd3 {[%emt 0:00:43]} 16. Qxd3 {[%emt 0:00:02]} Rd8 {[%emt 0:00:01]} 17. Qc4 {[%emt 0:03:36]} O-O {[%emt 0:00:43]} 18. Rac1 {[%emt 0:07:43]} Bd6 19. h3 {[%emt 0:00:30]} Qb8 20. Ne4 {[%emt 0:00:30]} Nf5 21. Nxd6 {[%emt 0:00:30]} Qxd6 22. Bc3 {[%emt 0:00:30]} Rfe8 23. Qg4 {[%emt 0:00:30]} Qg6 24. Qxg6 {[%emt 0:00:30]} hxg6 25. Nc5 {[%emt 0:00:30]} Ncd4 26. Bxd4 {[%emt 0:00:30]} Nxd4 27. Rcd1 {[%emt 0:00:30]} Re7 28. Rfe1 {[%emt 0:00:30]} Rc7 29. b4 {[%emt 0:00:30]} Kf8 30. Kh1 {[%emt 0:00:30]} Nc6 31. Rxd8+ {[%emt 0:00:30]} Nxd8 32. a3 {[%emt 0:00:30]} Nc6 33. Rc1 {[%emt 0:00:30]} Nd8 34. Re1 {[%emt 0:00:30]} Nc6 35. Re4 {[%emt 0:00:30]} Nb8 36. Kh2 {[%emt 0:00:30]} Nd7 37. Nxd7+ {[%emt 0:00:30]} Rxd7 38. Kg3 {[%emt 0:00:30]} f6 39. Kf4 {[%emt 0:00:30]} Kf7 40. Ke3 {[%emt 0:00:30]} Rd8 41. g3 {[%emt 0:00:30]} Rd7 42. h4 {[%emt 0:00:30]} Rc7 43. Kd4 {[%emt 0:00:30]} Rc2 44. f4 {[%emt 0:00:30]} b6 45. Re3 {[%emt 0:00:30]} Rd2+ 46. Kc4 {[%emt 0:00:30]} Rd6 47. a4 {[%emt 0:00:30]} Re6 48. Rd3 {[%emt 0:00:30]} Ke7 49. a5 {[%emt 0:00:30]} 1/2-1/2

[Event "15th Arad Open 2022"]
[Site "Arad"]
[Date "2022.08.10"]
[Round "4.16"]
[White "Matasaru, Stephanie"]
[Black "Ambru, Dan-Calin"]
[Result "1-0"]
[ECO "B33"]
[WhiteElo "1885"]
[BlackElo "2001"]
[Annotator "NA RC"]
[PlyCount "75"]
[EventDate "2022.08.08"]
[EventType "swiss"]
[EventCountry "ROU"]
[SourceTitle "playchess.com"]
[Source "ChessBase"]
[SourceQuality "1"]
[TimeControl "5400+30"]

1. e4 {[%emt 0:00:03]} c5 {[%emt 0:04:43]} 2. Nf3 {[%emt 0:00:05]} Nc6 {[%emt 0:00:08]} 3. d4 {[%emt 0:00:05]} cxd4 {[%emt 0:00:06]} 4. Nxd4 {[%emt 0:00:05]} Nf6 {[%emt 0:00:53]} 5. Nc3 {[%emt 0:00:06]} e5 {[%emt 0:00:08]} 6. Ndb5 {[%emt 0:00:06]} d6 {[%emt 0:00:05]} 7. Bg5 {[%emt 0:00:09]} a6 {[%emt 0:00:11]} 8. Na3 {[%emt 0:00:04]} b5 {[%emt 0:00:05]} 9. Nd5 {[%emt 0:00:05]} Be7 {[%emt 0:00:12]} 10. Bxf6 {[%emt 0:00:10]} Bxf6 {[%emt 0:00:38]} 11. c3 {[%emt 0:00:06]} Ne7 {[%emt 0:00:04]} 12. Nxf6+ {[%emt 0:00:05]} gxf6 {[%emt 0:00:08]} 13. Bd3 {[%emt 0:00:13]} Bb7 {[%emt 0:06:10]} 14. Qe2 {[%emt 0:02:36]} d5 {[%emt 0:04:12]} 15. Nc2 {[%emt 0:00:28]} dxe4 {[%emt 0:05:07]} 16. Bxe4 {[%emt 0:00:08]} Bxe4 {[%emt 0:00:05]} 17. Qxe4 {[%emt 0:00:06]} Qd5 {[%emt 0:00:06]} 18. Qxd5 {[%emt 0:00:21]} Nxd5 {[%emt 0:00:08]} 19. O-O-O {[%emt 0:01:49]} O-O-O {[%emt 0:01:49]} 20. Ne3 {[%emt 0:02:14]} Nxe3 {[%emt 0:11:55]} 21. fxe3 {[%emt 0:03:12]} Rxd1+ $14 {[%emt 0:02:41]} 22. Rxd1 {[%emt 0:01:58]} Rd8 {[%emt 0:12:29]} 23. Rxd8+ {[%emt 0:14:12]} Kxd8 {[%emt 0:00:34]} 24. Kc2 {[%emt 0:00:29]} f5 {[%emt 0:12:48]} 25. g3 {[%emt 0:04:25]} Ke7 {[%emt 0:09:48]} 26. Kb3 {[%emt 0:10:19]} Kd6 {[%emt 0:06:31]} 27. c4 {[%emt 0:02:34]} Kc5 {[%emt 0:01:55]} 28. cxb5 {[%emt 0:00:06]} axb5 {[%emt 0:00:04]} 29. a4 {[%emt 0:02:00]} bxa4+ {[%emt 0:10:43]} 30. Kxa4 {[%emt 0:00:05]} Kc6 31. b4 {[%emt 0:00:30]} Kb6 32. b5 {[%emt 0:00:30]} Kb7 33. Kb4 {[%emt 0:00:30]} Kb6 34. Kc4 {[%emt 0:00:30]} e4 35. h4 {[%emt 0:00:30]} f6 36. h5 {[%emt 0:00:30]} h6 37. Kb4 {[%emt 0:00:30]} Kb7 38. Kc5 {[%emt 0:00:30]} 1-0

[Event "15th Arad Open 2022"]
[Site "Arad"]
[Date "2022.08.10"]
[Round "4.17"]
[White "Anghel, Iulian-Mihai"]
[Black "Matei-Catruna, Andrei"]
[Result "1-0"]
[ECO "D02"]
[WhiteElo "2015"]
[BlackElo "1338"]
[Annotator "NA RC"]
[PlyCount "85"]
[EventDate "2022.08.08"]
[EventType "swiss"]
[EventCountry "ROU"]
[SourceTitle "playchess.com"]
[Source "ChessBase"]
[SourceQuality "1"]
[TimeControl "5400+30"]

1. d4 {[%emt 0:00:10]} Nf6 {[%emt 0:00:15]} 2. Bf4 {[%emt 0:00:07]} d5 {[%emt 0:00:34]} 3. e3 {[%emt 0:00:09]} e6 {[%emt 0:00:57]} 4. Nf3 {[%emt 0:00:16]} c5 {[%emt 0:01:16]} 5. c3 {[%emt 0:00:16]} Nc6 {[%emt 0:00:44]} 6. Nbd2 {[%emt 0:00:36]} Bd6 {[%emt 0:03:42]} 7. Bg3 {[%emt 0:00:18]} O-O {[%emt 0:16:34]} 8. Bd3 {[%emt 0:00:20]} b6 {[%emt 0:01:34]} 9. Qe2 {[%emt 0:00:30]} Bb7 {[%emt 0:00:48]} 10. Rd1 {[%emt 0:00:39]} Ne7 {[%emt 0:06:07]} 11. e4 {[%emt 0:05:29]} dxe4 {[%emt 0:02:29]} 12. Nxe4 {[%emt 0:00:24]} Nxe4 {[%emt 0:02:43]} (12... Bxe4 $11 13. Bxe4 Nxe4 14. Qxe4 c4 $11) 13. Bxe4 {[%emt 0:00:10]} Bxg3 $18 {[%emt 0:22:33]} (13... Bxe4 $16 14. dxc5 Bxf3 15. Qxf3 bxc5 16. Bxd6 Re8) 14. Bxb7 {[%emt 0:05:57]} Rb8 {[%emt 0:09:03]} 15. hxg3 {[%emt 0:00:16]} Qe8 {[%emt 0:05:51]} 16. Be4 {[%emt 0:00:28]} f5 {[%emt 0:00:18]} 17. Bc2 {[%emt 0:00:32]} Ng6 {[%emt 0:00:52]} 18. Ng5 {[%emt 0:00:45]} Rf6 {[%emt 0:02:14]} 19. Nxh7 {[%emt 0:00:18]} Rf7 {[%emt 0:00:34]} 20. Ng5 {[%emt 0:00:46]} Rf6 {[%emt 0:01:25]} 21. Bb3 {[%emt 0:00:13]} Nf8 {[%emt 0:01:38]} 22. d5 {[%emt 0:05:00]} Rd8 {[%emt 0:04:40]} 23. dxe6 {[%emt 0:01:56]} Rxd1+ {[%emt 0:00:17]} 24. Kxd1 {[%emt 0:02:52]} Qe7 {[%emt 0:01:09]} 25. Qh5 {[%emt 0:03:31]} Rh6 {[%emt 0:01:14]} 26. Qf7+ {[%emt 0:00:15]} Qxf7 {[%emt 0:00:06]} 27. exf7+ {[%emt 0:00:04]} Kh8 {[%emt 0:00:10]} 28. Rxh6+ {[%emt 0:00:04]} gxh6 {[%emt 0:00:08]} 29. Ne6 {[%emt 0:00:04]} Nxe6 {[%emt 0:00:18]} 30. Bxe6 {[%emt 0:00:05]} Kg7 {[%emt 0:00:14]} 31. Ke2 {[%emt 0:00:06]} Kf8 {[%emt 0:00:10]} 32. Kf3 {[%emt 0:00:05]} Ke7 {[%emt 0:00:04]} 33. Bb3 {[%emt 0:00:13]} a6 {[%emt 0:00:08]} 34. Kf4 {[%emt 0:00:04]} Kf8 {[%emt 0:00:15]} 35. Kxf5 {[%emt 0:00:05]} b5 {[%emt 0:00:06]} 36. Kg6 {[%emt 0:00:10]} a5 {[%emt 0:00:06]} 37. g4 {[%emt 0:00:11]} c4 {[%emt 0:00:12]} 38. Bc2 {[%emt 0:00:04]} b4 {[%emt 0:00:08]} 39. f4 {[%emt 0:00:12]} h5 {[%emt 0:00:14]} 40. g5 {[%emt 0:00:00]} b3 {[%emt 0:00:00]} 41. Kf6 {[%emt 0:00:00]} bxc2 {[%emt 0:00:00]} 42. g6 {[%emt 0:00:00]} c1=Q {[%emt 0:00:00]} 43. g7# {[%emt 0:00:00]} 1-0

[Event "15th Arad Open 2022"]
[Site "Arad"]
[Date "2022.08.10"]
[Round "4.18"]
[White "Dinca, Ovidiu"]
[Black "Oltean, Cristian-Daniel"]
[Result "1-0"]
[ECO "B22"]
[WhiteElo "1831"]
[BlackElo "2158"]
[Annotator "TA"]
[PlyCount "83"]
[EventDate "2022.08.08"]
[EventType "swiss"]
[EventCountry "ROU"]
[SourceTitle "playchess.com"]
[Source "ChessBase"]
[SourceQuality "1"]
[TimeControl "5400+30"]

{[%evp 21,83,38,39,43,72,73,121,104,117,108,116,108,158,106,101,83,78,92,90,99,103,106,96,90,137,123,130,97,159,114,184,176,172,192,194,156,207,162,209,204,741,729,681,365,1019,604,987,963,943,919,1082,944,29994,958,29979,29980,29980,29981,29979,29980,29992,29993,29994,669]} 1. e4 {[%emt 0:00:07]} c5 {[%emt 0:00:09]} 2. c3 {[%emt 0:00:11]} Nf6 {[%emt 0:03:39]} 3. e5 {[%emt 0:00:04]} Nd5 {[%emt 0:00:39]} 4. d4 {[%emt 0:00:03]} cxd4 {[%emt 0:00:20]} 5. Nf3 {[%emt 0:00:13]} e6 {[%emt 0:02:22]} 6. cxd4 {[%emt 0:00:29]} Nc6 {[%emt 0:06:09]} 7. Nc3 {[%emt 0:01:13]} Nxc3 {[%emt 0:14:08]} 8. bxc3 {[%emt 0:00:10]} d6 {[%emt 0:01:52]} 9. exd6 {[%emt 0:00:55]} Bxd6 {[%emt 0:01:00]} 10. Bd3 {[%emt 0:00:25]} h6 {[%emt 0:19:05]} 11. O-O {[%emt 0:00:17]} O-O {[%emt 0:00:44]} 12. Re1 {[%emt 0:00:13] B22: Sicilian: 2 c3.} Re8 {[%emt 0:12:41]} 13. Bc2 {[%emt 0:01:06]} Bf8 {[%emt 0:03:35]} ({Black should play} 13... Ne7) 14. Bf4 {[%emt 0:03:23] White is better.} Bd7 {[%emt 0:08:38] [#]} 15. Qd3 $146 {[%emt 0:04:29][%csl Gc2][%cal Rd3h7] [#]} ({Predecessor:} 15. h4 Rc8 16. Qd3 f5 17. h5 a6 18. a4 Na5 19. Ne5 Nc6 20. Nxd7 Qxd7 21. Bb3 {1-0 (57) Formanek,E (2350)-Poschel,P (2260) Chicago 1986}) 15... g6 {[%emt 0:00:39]} 16. h4 {[%emt 0:02:12][%cal Oh4h5]} Qf6 {[%emt 0:03:46]} (16... e5 $142) 17. Qd2 {[%emt 0:06:25]} (17. Be5 $142 Nxe5 18. Nxe5) 17... Qg7 $16 {[%emt 0:02:05]} 18. Rab1 {[%emt 0:04:30]} b6 {[%emt 0:02:47]} 19. Ne5 {[%emt 0:12:51]} Nxe5 {[%emt 0:00:26]} 20. Bxe5 {[%emt 0:00:10]} ({Don't take} 20. Rxe5 Rac8 $14) 20... f6 {[%emt 0:00:21]} 21. Bg3 {[%emt 0:01:14] White is much more active.} Rad8 {[%emt 0:03:03]} 22. Qd3 {[%emt 0:01:48]} g5 {[%emt 0:03:39]} (22... e5 $142) 23. hxg5 {[%emt 0:00:25]} hxg5 {[%emt 0:00:07]} 24. Bb3 {[%emt 0:02:15]} Bc8 {[%emt 0:01:34]} (24... Kh8 $142) 25. Re3 {[%emt 0:04:30]} Bd6 {Against f4} (25... Qh7 $16 {is a better defense.}) 26. Rbe1 $18 {[%emt 0:00:30]} Bxg3 27. Rxg3 {[%emt 0:00:30] Hoping for f4.} ({Don't play} 27. fxg3 $6 Qh7 $16) 27... Kf8 28. Rge3 {[%emt 0:00:30]} Rd6 (28... e5 $16 29. Qe2 Be6 30. dxe5 f5) 29. Qe2 {[%emt 0:00:30]} Qf7 (29... g4 $142 30. Re4 f5) 30. Rh3 {[%emt 0:00:30] [#] Strongly threatening Qd3.} Bb7 $2 (30... Ke7 31. Qe4 Rg8) 31. Bc2 {[%emt 0:00:30]} f5 32. g4 {[%emt 0:00:30]} Rdd8 $2 (32... Qg7 33. gxf5 e5) 33. gxf5 {[%emt 0:00:30]} e5 34. f6 {[%emt 0:00:30]} Qxf6 35. dxe5 {[%emt 0:00:30]} Qc6 36. Qg4 {[%emt 0:00:30]} Re7 37. Be4 {[%emt 0:00:30]} (37. Rh8+ $142 Kg7 38. Rh7+ Kf8 39. Qf5+ Kg8 40. Qxg5+ Kf8 41. Qxe7+ Kg8 42. Qg7#) 37... Rxe5 38. Qf3+ {[%emt 0:00:30] White mates.} Kg8 39. Bxc6 {[%emt 0:00:30]} Rxe1+ 40. Kh2 {[%emt 0:00:30]} Bxc6 41. Qxc6 {[%emt 0:00:30]} Rdd1 42. Qg6+ {[%emt 0:00:30] Weighted Error Value: White=0.45/Black=0.76} 1-0

[Event "15th Arad Open 2022"]
[Site "Arad"]
[Date "2022.08.10"]
[Round "4.19"]
[White "Rujan, Rodel-Marinel"]
[Black "Oltean, Cristian-Daniel"]
[Result "0-1"]
[ECO "B50"]
[WhiteElo "1785"]
[BlackElo "2158"]
[Annotator "TA"]
[PlyCount "55"]
[EventDate "2022.08.08"]
[EventType "swiss"]
[EventCountry "ROU"]
[SourceTitle "playchess.com"]
[Source "ChessBase"]
[SourceQuality "1"]
[TimeControl "5400+30"]

{[%evp 13,55,-2,-3,-15,0,0,-7,0,0,-12,-17,-30,-30,-31,0,-56,-57,-57,-63,-47,-52,-85,-85,-91,-42,-66,-21,-72,-70,-83,-75,-88,-56,-70,-53,-67,-75,-82,-60,-52,-50,-56,-39,-49]} 1. e4 {[%emt 0:10:01]} c5 {[%emt 0:00:10]} 2. Nf3 {[%emt 0:00:15]} d6 {[%emt 0:00:07]} 3. c3 {[%emt 0:00:28]} Nf6 {[%emt 0:00:16]} 4. Be2 {[%emt 0:00:18]} e6 {[%emt 0:06:17]} 5. O-O {[%emt 0:00:23]} Nc6 {[%emt 0:00:14]} 6. d3 {[%emt 0:00:44]} Be7 {[%emt 0:00:35]} 7. Re1 {[%emt 0:00:24]} O-O {[%emt 0:00:09]} 8. Bf1 {[%emt 0:00:10] B50: Sicilian: 2...d6, Miscellaneous.} Qc7 {[%emt 0:10:58]} 9. a4 {[%emt 0:06:02] [#]} e5 $146 {[%emt 0:00:48]} ({Predecessor:} 9... a6 10. Na3 Bd7 11. h3 Na7 12. Bf4 b5 13. e5 Nd5 14. exd6 Bxd6 15. Bxd6 Qxd6 {1-0 (26) Mendez Acosta,A (1996)-Baez Luis,A (1415) Santa Cruz de Tenerife 2017}) 10. Nbd2 {[%emt 0:01:14] The position is equal.} Be6 {[%emt 0:08:39]} 11. Nc4 {[%emt 0:03:27]} h6 {[%emt 0:04:52]} 12. Qc2 {[%emt 0:00:47]} Rfe8 {[%emt 0:01:08]} 13. Bd2 {[%emt 0:13:19]} Bf8 {[%emt 0:03:24]} 14. Ne3 {[%emt 0:03:20]} (14. b4 $11) 14... d5 $15 {[%emt 0:00:30]} 15. c4 {[%emt 0:01:53][%cal Rc4d5]} dxe4 {[%emt 0:01:44]} 16. dxe4 {[%emt 0:00:10]} Nd4 17. Nxd4 {[%emt 0:00:57]} cxd4 {[%emt 0:00:56]} 18. Nd1 {[%emt 0:00:26]} g6 {[%emt 0:08:50] Black is more active.} (18... Nd7 $17 19. b3 a5) 19. f3 {[%emt 0:00:38]} Rac8 {[%emt 0:00:50]} 20. Rc1 {[%emt 0:00:08]} (20. b4 $11) 20... a5 {[%emt 0:03:48]} 21. Nf2 {[%emt 0:02:16]} Nd7 {[%emt 0:00:24]} 22. b3 {[%emt 0:04:49]} Nc5 {[%emt 0:06:39]} 23. Nd3 {[%emt 0:00:36]} Kh7 {[%emt 0:02:41]} 24. Nxc5 {[%emt 0:01:41]} Bxc5 {[%emt 0:00:12]} 25. Bd3 {[%emt 0:00:07]} Kg7 {[%emt 0:12:05]} 26. Kh1 {[%emt 0:00:12] Black is slightly better.} b6 {[%emt 0:01:20]} 27. Rf1 {[%emt 0:01:46]} Bd6 {[%emt 0:00:06]} 28. Rce1 {[%emt 0:00:42] Weighted Error Value: White=0.15 (very precise) /Black=0.12 (very precise)} 0-1

[Event "15th Arad Open 2022"]
[Site "Arad"]
[Date "2022.08.10"]
[Round "4.19"]
[White "Rujan, Rodel-Marinel"]
[Black "Veneteanu, Mihai"]
[Result "*"]
[ECO "B50"]
[WhiteElo "1785"]
[BlackElo "2025"]
[Annotator "NA RC"]
[PlyCount "55"]
[EventDate "2022.08.08"]
[EventType "swiss"]
[EventCountry "ROU"]
[SourceTitle "playchess.com"]
[Source "ChessBase"]
[SourceQuality "1"]
[TimeControl "5400+30"]

1. e4 {[%emt 0:10:01]} c5 {[%emt 0:00:10]} 2. Nf3 {[%emt 0:00:15]} d6 {[%emt 0:00:07]} 3. c3 {[%emt 0:00:28]} Nf6 {[%emt 0:00:16]} 4. Be2 {[%emt 0:00:18]} e6 {[%emt 0:06:17]} 5. O-O {[%emt 0:00:23]} Nc6 {[%emt 0:00:14]} 6. d3 {[%emt 0:00:44]} Be7 {[%emt 0:00:35]} 7. Re1 {[%emt 0:00:24]} O-O {[%emt 0:00:09]} 8. Bf1 {[%emt 0:00:10]} Qc7 {[%emt 0:10:58]} 9. a4 {[%emt 0:06:02]} e5 {[%emt 0:00:48]} 10. Nbd2 {[%emt 0:01:14]} Be6 {[%emt 0:08:39]} 11. Nc4 {[%emt 0:03:27]} h6 {[%emt 0:04:52]} 12. Qc2 {[%emt 0:00:47]} Rfe8 $11 {[%emt 0:01:08]} 13. Bd2 {[%emt 0:13:19]} Bf8 {[%emt 0:03:24]} 14. Ne3 {[%emt 0:03:20]} d5 {[%emt 0:00:30]} 15. c4 {[%emt 0:01:53]} dxe4 {[%emt 0:01:44]} 16. dxe4 {[%emt 0:00:10]} Nd4 17. Nxd4 {[%emt 0:00:57]} cxd4 {[%emt 0:00:56]} 18. Nd1 {[%emt 0:00:26]} g6 {[%emt 0:08:50]} 19. f3 {[%emt 0:00:38]} Rac8 {[%emt 0:00:50]} 20. Rc1 {[%emt 0:00:08]} a5 {[%emt 0:03:48]} 21. Nf2 {[%emt 0:02:16]} Nd7 {[%emt 0:00:24]} 22. b3 {[%emt 0:04:49]} Nc5 {[%emt 0:46:51]} 23. Nd3 {[%emt 0:00:36]} Kh7 {[%emt 0:40:42]} 24. Nxc5 {[%emt 0:01:41]} Bxc5 {[%emt 0:00:12]} 25. Bd3 {[%emt 0:00:07]} Kg7 {[%emt 0:12:05]} 26. Kh1 {[%emt 0:00:12]} b6 {[%emt 0:01:20]} 27. Rf1 {[%emt 0:01:46]} Bd6 {[%emt 0:00:06]} 28. Rce1 {[%emt 0:00:42]} *

[Event "15th Arad Open 2022"]
[Site "Arad"]
[Date "2022.08.10"]
[Round "4.20"]
[White "Zubac, Marius"]
[Black "Parasca, Claudiu"]
[Result "0-1"]
[ECO "D00"]
[WhiteElo "2025"]
[BlackElo "1784"]
[Annotator "NA RC"]
[PlyCount "110"]
[EventDate "2022.08.08"]
[EventType "swiss"]
[EventCountry "ROU"]
[SourceTitle "playchess.com"]
[Source "ChessBase"]
[SourceQuality "1"]
[TimeControl "5400+30"]

1. d4 {[%emt 0:00:05]} d5 {[%emt 0:06:01]} 2. Nc3 {[%emt 0:00:44]} e6 {[%emt 0:00:57]} 3. f3 {[%emt 0:00:16]} Nc6 {[%emt 0:03:15]} 4. Bf4 {[%emt 0:01:20]} Bd6 {[%emt 0:00:22]} 5. Qd2 {[%emt 0:00:19]} Qh4+ {[%emt 0:02:28]} 6. g3 {[%emt 0:00:42]} Bxf4 {[%emt 0:00:20]} 7. Qxf4 {[%emt 0:00:21]} Qxf4 {[%emt 0:00:03]} 8. gxf4 {[%emt 0:00:11]} Nxd4 {[%emt 0:00:07]} 9. O-O-O {[%emt 0:00:08]} c5 {[%emt 0:01:34]} 10. e4 {[%emt 0:00:51]} Nf6 {[%emt 0:00:28]} 11. exd5 {[%emt 0:02:59]} exd5 {[%emt 0:00:04]} 12. Re1+ {[%emt 0:00:13]} Be6 {[%emt 0:00:34]} 13. Bb5+ {[%emt 0:02:05]} Nxb5 {[%emt 0:00:37]} 14. Nxb5 {[%emt 0:00:06]} Kd7 {[%emt 0:00:17]} 15. Re5 {[%emt 0:03:50]} Kc6 {[%emt 0:01:02]} 16. c4 {[%emt 0:02:16]} d4 {[%emt 0:04:43]} 17. b4 {[%emt 0:02:08]} b6 {[%emt 0:00:24]} 18. Na3 {[%emt 0:00:15]} Nd7 {[%emt 0:00:48]} 19. b5+ {[%emt 0:00:29]} Kd6 {[%emt 0:00:18]} 20. Rg5 {[%emt 0:00:31]} g6 {[%emt 0:00:04]} 21. Ne2 $1 $11 {[%emt 0:00:40] and White stays safe.} Bf5 {[%emt 0:00:57]} (21... a6 22. Re1) 22. Ng3 {[%emt 0:01:04]} Be6 $2 {[%emt 0:03:11]} (22... Bh3 $19 23. Ne4+ Kc7) 23. f5 $2 {[%emt 0:01:31]} gxf5 {[%emt 0:00:50]} 24. Nxf5+ {[%emt 0:00:09]} Bxf5 {[%emt 0:01:16]} 25. Rxf5 {[%emt 0:00:07]} f6 {[%emt 0:00:16]} 26. Rd5+ {[%emt 0:01:30]} Kc7 {[%emt 0:00:27]} 27. Re1 $19 {[%emt 0:03:35]} (27. f4 $142) 27... Rae8 {[%emt 0:00:02]} 28. Rxe8 {[%emt 0:00:51]} Rxe8 {[%emt 0:00:06]} 29. Rh5 {[%emt 0:00:06]} Re7 {[%emt 0:00:33]} (29... Re1+ $142 30. Kc2 Re2+ 31. Kd1 Rxa2) 30. Rh6 {[%emt 0:00:32]} (30. Nb1 $142) 30... Kd6 {[%emt 0:00:58]} 31. Kd2 {[%emt 0:00:30]} Ke5 {[%emt 0:00:18]} 32. Nc2 {[%emt 0:00:58]} Kf4 {[%emt 0:00:38]} 33. Ne1 {[%emt 0:02:47]} Kg5 {[%emt 0:00:11]} 34. Rh3 {[%emt 0:00:12]} Ne5 {[%emt 0:00:05]} 35. Rg3+ {[%emt 0:01:35]} Kf5 {[%emt 0:00:20]} 36. Ng2 {[%emt 0:02:30]} Nxc4+ {[%emt 0:03:32]} 37. Kd3 {[%emt 0:00:02]} Ne5+ {[%emt 0:01:19]} 38. Kd2 {[%emt 0:00:05]} Ng6 {[%emt 0:00:22]} 39. Rg4 {[%emt 0:01:43]} h5 {[%emt 0:03:50]} 40. Rg3 {[%emt 0:00:00]} c4 {[%emt 0:00:00]} 41. Rh3 {[%emt 0:00:00]} Rh7 {[%emt 0:00:00]} 42. Nh4+ {[%emt 0:00:00]} Nxh4 43. Rxh4 {[%emt 0:00:00]} Ke5 {[%emt 0:00:00]} 44. Re4+ {[%emt 0:00:00]} Kd5 {[%emt 0:00:00]} 45. Rf4 {[%emt 0:00:00]} Rh6 {[%emt 0:00:00]} 46. h4 {[%emt 0:00:00]} Kc5 {[%emt 0:00:00]} 47. a4 {[%emt 0:00:00]} Rg6 {[%emt 0:00:00]} 48. Rf5+ {[%emt 0:00:00]} Kb4 {[%emt 0:00:00]} 49. Rxh5 {[%emt 0:00:00]} Rg2+ {[%emt 0:00:00]} 50. Kd1 {[%emt 0:00:00]} d3 {[%emt 0:00:00]} 51. Rd5 {[%emt 0:00:00]} Kc3 {[%emt 0:00:00]} 52. Ke1 {[%emt 0:00:00]} Re2+ {[%emt 0:00:00]} 53. Kf1 {[%emt 0:00:00]} Rh2 {[%emt 0:00:00]} 54. h5 {[%emt 0:00:00]} d2 {[%emt 0:00:00]} 55. Kg1 {[%emt 0:00:00]} Rxh5 {[%emt 0:00:00]} 0-1